[Event "12th WLC Weekend 2022"]
[Site "Eindhoven"]
[Date "2022.05.14"]
[Round "4.11"]
[White "Zepeda, Lorena"]
[Black "Simons, Rudy"]
[Result "0-1"]
[ECO "B79"]
[WhiteElo "2130"]
[BlackElo "2046"]
[Annotator "TA"]
[PlyCount "101"]
[EventDate "2022.05.13"]
[EventType "swiss"]
[EventCountry "NED"]
[SourceTitle "playchess.com"]
[Source "ChessBase"]
[SourceQuality "1"]
[TimeControl "5400+30"]

{[%evp 30,101,0,0,99,97,89,98,87,84,97,89,85,84,85,84,100,90,228,225,243,241,247,238,240,106,118,0,165,141,137,148,131,137,148,141,138,63,125,125,116,124,123,116,116,124,149,152,194,187,182,133,149,135,197,176,142,132,239,237,237,221,207,205,325,331,4133,4133,29983,29984,29988,29989,29989,29989]} 1. e4 {[%emt 0:00:03]} c5 {[%emt 0:00:08]} 2. Nf3 {[%emt 0:00:05]} d6 {[%emt 0:00:06]} 3. d4 {[%emt 0:00:06]} cxd4 {[%emt 0:00:06]} 4. Nxd4 {[%emt 0:00:03]} Nf6 {[%emt 0:00:10]} 5. Nc3 {[%emt 0:00:04]} g6 {[%emt 0:00:08]} 6. Be3 {[%emt 0:00:18]} Bg7 {[%emt 0:00:06]} 7. f3 {[%emt 0:00:15]} O-O {[%emt 0:00:07]} 8. Qd2 {[%emt 0:00:12]} Nc6 {[%emt 0:00:07]} 9. Bc4 {[%emt 0:00:19]} Bd7 {[%emt 0:00:11]} 10. h4 {[%emt 0:01:24]} Ne5 {[%emt 0:00:05]} 11. Bb3 {[%emt 0:00:16]} Qa5 {[%emt 0:00:13]} 12. O-O-O {[%emt 0:00:55]} Rfc8 {[%emt 0:00:09]} 13. h5 {[%emt 0:05:46]} Nxh5 {[%emt 0:01:21]} 14. Bh6 {[%emt 0:12:46]} Bxh6 {[%emt 0:00:18]} 15. Qxh6 {[%emt 0:00:09]} Rxc3 {[%emt 0:00:08]} 16. bxc3 {[%emt 0:08:04] g4 is the strong threat.} Qxc3 {[%emt 0:00:17] B79: Sicilian Dragon: Yugoslav Attack, 9 Bc4 Bd7 10 0-0-0 Qa5.} (16... Nf6 $11 {keeps the balance.}) 17. Ne2 $1 $16 {[%emt 0:02:19]} Nd3+ {[%emt 0:11:58]} 18. Rxd3 {[%emt 0:00:31]} Qa1+ {[%emt 0:00:05] White is better.} 19. Kd2 {[%emt 0:00:15]} Qxh1 {[%emt 0:00:03]} 20. g4 {[%emt 0:03:08]} Ng3 {[%emt 0:09:01]} 21. Qxh1 {[%emt 0:00:20]} Nxh1 {[%emt 0:00:02]} 22. Ke3 {[%emt 0:00:36] Prevents Nf2.} a5 {[%emt 0:09:19]} 23. Rd1 {[%emt 0:02:40]} a4 {[%emt 0:00:14]} (23... Rc8 $16) 24. Bc4 $1 $18 {[%emt 0:00:56] [#]} ({Don't take} 24. Bd5 $6 Rc8 $16) 24... b5 $146 {[%emt 0:00:37]} ({Predecessor:} 24... Rc8 25. Bd3 a3 26. Rxh1 Bc6 27. Ra1 f6 28. Nd4 Bd7 29. Rb1 e5 30. Nb5 Bc6 {1-0 (98) Dann,M-Nissen,A Churchill 2000}) 25. Bd3 {[%emt 0:00:28]} Ng3 {[%emt 0:09:20]} 26. Nxg3 {[%emt 0:00:13]} b4 {[%emt 0:10:47]} 27. Bc4 {[%emt 0:08:01]} (27. Ne2 $18 {and White stays clearly on top.}) 27... Rc8 $16 {[%emt 0:00:47]} 28. Bd3 {[%emt 0:12:29]} ({White should play} 28. Kd4 $16) 28... Be6 $2 {[%emt 0:05:43]} (28... Ra8 $1 $11 {and Black stays safe.}) 29. Rb1 {[%emt 0:03:51]} Bxa2 {[%emt 0:10:50]} 30. Rxb4 {[%emt 0:00:20]} Ra8 {[%emt 0:00:27]} 31. Rb2 {[%emt 0:00:26]} Be6 {[%emt 0:03:14] [#]} 32. c4 $1 {[%emt 0:02:51]} Ra5 {[%emt 0:11:54]} 33. Kd4 {[%emt 0:07:03]} (33. Ne2 $16) 33... Kg7 {[%emt 0:05:43]} (33... a3 $14 34. Ra2 h5) 34. Rb5 {[%emt 0:07:30]} Ra7 {[%emt 0:00:19] [#]} 35. Bb1 $1 {[%emt 0:01:31]} a3 {[%emt 0:03:53] Strongly threatening ...Ra4.} 36. Ba2 {[%emt 0:00:22]} Ra4 {[%emt 0:00:24][%cal Oe6c4] Hoping for ...Bxc4!} 37. Rb1 {[%emt 0:01:22]} Kf6 {[%emt 0:01:19]} 38. Ne2 {[%emt 0:04:59]} h5 {[%emt 0:01:00]} 39. gxh5 {[%emt 0:03:59]} gxh5 {[%emt 0:00:08]} 40. f4 {[%emt 0:02:35]} (40. Rh1 $18) 40... Bg4 {[%emt 0:00:30]} 41. Nc3 {[%emt 0:00:48]} e5+ {[%emt 0:03:49]} (41... Ra7 $16 {was called for.} 42. e5+ Kf5) 42. fxe5+ {[%emt 0:00:15]} dxe5+ {[%emt 0:00:04]} 43. Ke3 {[%emt 0:00:28]} Ra8 {[%emt 0:00:56]} (43... Ra6 $16) 44. c5 $18 {[%emt 0:02:26][%cal Bc4c5,Bc5c6][%mdl 32]} Rc8 {[%emt 0:00:52]} 45. Nd5+ {[%emt 0:00:37]} Kg5 {[%emt 0:00:10]} 46. Rc1 {[%emt 0:00:30]} Be6 {[%emt 0:01:23]} (46... Rc6 $142 47. Nb4 Rc7) 47. c6 {[%emt 0:01:10]} f5 $2 {[%emt 0:02:15]} (47... h4 48. Rg1+ Kh6) 48. Rg1+ {[%emt 0:02:24]} Kh6 {[%emt 0:00:22]} 49. exf5 {[%emt 0:00:43] White mates.} Bxf5 {[%emt 0:02:30]} 50. Ne7 {[%emt 0:00:32][%csl LRc8,LRf5]} Rxc6 {[%emt 0:00:41]} 51. Nxc6 {[%emt 0:00:45][%mdl 32768] Weighted Error Value: White=0.13 (very precise) /Black=0.53. Loss on time!?} 0-1

[Event "12th WLC Weekend 2022"]
[Site "Eindhoven"]
[Date "2022.05.14"]
[Round "4.12"]
[White "Koster, Chiel"]
[Black "Van Helvoort, Rob"]
[Result "1-0"]
[ECO "B06"]
[WhiteElo "1924"]
[BlackElo "2133"]
[Annotator "TA"]
[PlyCount "37"]
[EventDate "2022.05.13"]
[EventType "swiss"]
[EventCountry "NED"]
[SourceTitle "playchess.com"]
[Source "ChessBase"]
[SourceQuality "1"]
[TimeControl "5400+30"]

{[%evp 9,37,56,58,77,73,19,29,0,29,7,4,14,38,13,19,0,0,0,133,140,317,188,182,172,743,733,685,260,323,306]} 1. e4 {[%emt 0:00:06]} g6 {[%emt 0:00:06]} 2. Nc3 {[%emt 0:00:15]} Bg7 {[%emt 0:00:15]} 3. h4 {[%emt 0:00:07][%cal Bh2h4,Bh4h5][%mdl 32]} h6 {[%emt 0:01:54]} 4. d4 {[%emt 0:01:14]} d6 {[%emt 0:01:00]} 5. Be3 {[%emt 0:01:54]} a6 {[%emt 0:01:10]} 6. h5 {[%emt 0:02:00] B06: Modern Defence.} g5 {[%emt 0:00:06]} 7. Bd3 {[%emt 0:00:40]} (7. Nge2 $16) 7... Nd7 {[%emt 0:08:43]} 8. Nge2 {[%emt 0:03:10] [#] White has an edge.} b5 $146 {[%emt 0:15:19]} ({Predecessor:} 8... c5 9. dxc5 dxc5 10. a4 e6 11. g3 Qc7 12. Ng1 b6 13. Bd2 Bb7 14. f4 Ne7 {0-1 (32) Degraeve,J (2525)-Bezold,M (2490) Cap d'Agde 1998}) 9. f4 {[%emt 0:03:03]} gxf4 {[%emt 0:00:27]} 10. Nxf4 {[%emt 0:00:47][%cal Of4g6]} Ngf6 {[%emt 0:09:15]} 11. Qf3 {[%emt 0:03:26][%cal Oe4e5] Black must now prevent e5!} (11. e5 {keeps more tension.} dxe5 12. Ne6 fxe6 13. Bg6+) 11... e5 {[%emt 0:05:12]} 12. Nfd5 {[%emt 0:01:20]} Nxd5 {[%emt 0:03:52]} 13. Nxd5 {[%emt 0:01:53] Qg3 is the strong threat.} Bb7 {[%emt 0:07:46] [#]} (13... exd4 $11 {remains equal.} 14. Bf2 Ne5) 14. Qg3 $1 $16 {[%emt 0:02:28] 0x0.001a2cbe616adp-1022s more active pieces. The black rooks are badly placed.} Bf8 {[%emt 0:04:07] Loses the game.} (14... Bf6 $16 {keeps fighting.}) 15. Rf1 {[%emt 0:02:04]} (15. O-O $142 {[%cal Of1f7] Strongly threatening Rxf7!} Rh7 16. Qg4) 15... Bxd5 $18 {[%emt 0:03:33]} 16. exd5 $40 {[%emt 0:00:26][%mdl 128] White goes for the king.} e4 $2 {[%emt 0:01:43] [#]} (16... Be7 17. O-O-O (17. Qg7 Bf6 $14) 17... Bg5) 17. Rxf7 $3 {[%emt 0:02:53][%mdl 512]} exd3 {[%emt 0:04:34] [#]} 18. Qg6 $2 {[%emt 0:02:41]} (18. O-O-O $1 Rh7 19. Rxh7) 18... Qh4+ {[%emt 0:00:29]} 19. g3 {[%emt 0:00:14] Weighted Error Value: White=0.57/Black=0.38} 1-0

[Event "12th WLC Weekend 2022"]
[Site "Eindhoven"]
[Date "2022.05.14"]
[Round "4.13"]
[White "Wuijts, Johan"]
[Black "Roebers, Jan"]
[Result "1/2-1/2"]
[ECO "E72"]
[WhiteElo "1964"]
[BlackElo "2126"]
[Annotator "TA"]
[PlyCount "43"]
[EventDate "2022.05.13"]
[EventType "swiss"]
[EventCountry "NED"]
[SourceTitle "playchess.com"]
[Source "ChessBase"]
[SourceQuality "1"]
[TimeControl "5400+30"]

{[%evp 13,43,29,43,46,44,37,64,58,118,111,148,130,120,117,164,169,170,171,170,136,159,118,260,263,356,0,201,0,353,0,206,76]} 1. d4 {[%emt 0:00:02]} Nf6 {[%emt 0:00:14]} 2. c4 {[%emt 0:00:05]} g6 {[%emt 0:00:11]} 3. Nc3 {[%emt 0:00:04]} Bg7 {[%emt 0:00:03]} 4. e4 {[%emt 0:00:17]} d6 {[%emt 0:00:06]} 5. g3 {[%emt 0:00:03]} O-O {[%emt 0:00:36]} 6. Bg2 {[%emt 0:00:04]} Nc6 {[%emt 0:00:42]} 7. Nge2 {[%emt 0:00:46]} a6 {[%emt 0:00:43]} 8. O-O {[%emt 0:01:42] E72: King's Indian: 4 e4 d6 5 g3.} Rb8 {[%emt 0:01:27]} 9. f4 {[%emt 0:14:23]} Na5 {[%emt 0:04:38]} 10. b3 {[%emt 0:07:36] [#] White is slightly better.} (10. e5 {with more complications.} Ng4 11. b3 b5 12. h3) 10... c5 $146 {[%emt 0:04:55] [#]} ({Black should try} 10... Nd7 $14) ({Predecessor:} 10... b5 11. cxb5 axb5 12. e5 Nd7 13. Be3 b4 14. Ne4 f6 15. Rc1 Nb6 16. exf6 exf6 {1-0 (30) Chiburdanidze,M (2505)-Misanovic,V (2355) Moscow 1994}) 11. dxc5 $1 $16 {[%emt 0:07:41]} dxc5 {[%emt 0:01:22]} 12. Qxd8 {[%emt 0:05:53]} Rxd8 {[%emt 0:00:06]} 13. e5 {[%emt 0:00:10]} Ng4 {[%emt 0:04:14]} (13... Ne8 $16) 14. h3 {[%emt 0:01:09]} Nh6 {[%emt 0:00:07]} 15. Be3 {[%emt 0:06:23]} b6 {[%emt 0:03:59]} 16. Rad1 {[%emt 0:00:42]} Re8 {[%emt 0:03:01]} 17. g4 {[%emt 0:03:53] 0x0.001a2c292350dp-1022s more active pieces.} f6 {[%emt 0:08:29]} (17... f5 $16 {was worth a try.}) 18. Nd5 $18 {[%emt 0:16:07]} Rb7 {[%emt 0:08:23]} 19. Ndc3 {[%emt 0:06:17]} (19. Nec3 $142) 19... Rb8 $1 {[%emt 0:00:41]} 20. Nd5 $2 {[%emt 0:02:28] [#]} (20. f5) 20... Rb7 $1 {[%emt 0:00:17]} 21. Ndc3 {[%emt 0:00:05]} (21. Nec3 $142) 21... Rb8 $1 {[%emt 0:00:30]} 22. Kh1 {[%emt 0:00:08] Weighted Error Value: White=0.73/Black=0.19 (very precise)} (22. f5 $18 {has better winning chances.}) 1/2-1/2

[Event "12th WLC Weekend 2022"]
[Site "Eindhoven"]
[Date "2022.05.14"]
[Round "4.14"]
[White "Weijers, Ralf"]
[Black "Slagboom, Leandro"]
[Result "0-1"]
[ECO "B20"]
[WhiteElo "1857"]
[BlackElo "1997"]
[Annotator "TA"]
[PlyCount "44"]
[EventDate "2022.05.13"]
[EventType "swiss"]
[EventCountry "NED"]
[SourceTitle "playchess.com"]
[Source "ChessBase"]
[SourceQuality "1"]
[TimeControl "5400+30"]

{[%evp 9,44,-62,-70,-77,-71,-129,-153,-135,-128,-475,-485,-470,-465,-473,-452,-454,-460,-461,-379,-376,-387,-397,-378,-407,-395,-394,-409,-509,-505,-522,-522,-514,-516,-526,-516,-523,-510]} 1. e4 {[%emt 0:00:01]} c5 {[%emt 0:00:09]} 2. a3 {[%emt 0:00:05]} Nc6 {[%emt 0:00:26]} 3. b4 {[%emt 0:00:04]} Nf6 {[%emt 0:00:26] [#]} 4. f3 $146 {[%emt 0:02:42]} ({Predecessor:} 4. b5 Nd4 5. c3 Ne6 6. d3 g6 7. g3 Bg7 8. Bg2 O-O 9. Ne2 a6 10. bxa6 Rxa6 {½-½ (51) Nepomniachtchi,I (2751)-Dubov,D (2701) Moscow 2018}) 4... e5 {[%emt 0:11:04]} 5. b5 {[%emt 0:04:25]} Nd4 {[%emt 0:00:34][%cal Of6e4]} 6. c3 {[%emt 0:07:31] B20: Sicilian: Unusual White 2nd moves.} Ne6 {[%emt 0:01:22] Black is more active.} 7. Bc4 {[%emt 0:03:21]} (7. Nh3 $142) 7... d5 {[%emt 0:03:29]} 8. exd5 {[%emt 0:01:02] Black is clearly better.} Nxd5 {[%emt 0:02:51] [#] White must now prevent ...Qh4+.} 9. Ne2 $2 {[%emt 0:06:23][%mdl 8192]} (9. d3 $17 {is more resistant.}) 9... Qh4+ $19 {[%emt 0:06:23]} 10. g3 {[%emt 0:03:26]} Qxc4 {[%emt 0:00:00]} 11. d3 {[%emt 0:00:43]} Qxb5 {[%emt 0:00:00]} 12. c4 {[%emt 0:00:42]} Qa5+ {[%emt 0:01:59]} 13. Bd2 {[%emt 0:01:01]} Qd8 {[%emt 0:00:30]} 14. cxd5 {[%emt 0:03:05]} Qxd5 {[%emt 0:00:07]} 15. Nc1 {[%emt 0:00:09]} Bd6 {[%emt 0:02:58]} ({Don't blunder} 15... Nd4 $2 16. O-O $19) 16. Be3 {[%emt 0:00:46]} O-O {[%emt 0:01:35]} ({Avoid the trap} 16... Nd4 $2 17. O-O $19) 17. Nc3 {[%emt 0:01:31]} Qc6 {[%emt 0:00:14]} 18. Ne4 {[%emt 0:00:45]} f5 {[%emt 0:01:08] Black is clearly winning.} 19. Nxd6 {[%emt 0:02:56]} Qxd6 {[%emt 0:00:07]} 20. O-O {[%emt 0:01:07]} b6 {[%emt 0:02:05]} 21. Ra2 {[%emt 0:07:07]} Bb7 {[%emt 0:01:13]} 22. Raf2 {[%emt 0:01:04]} Rad8 {[%emt 0:02:56] White did not feel at home in the position after the opening.  Weighted Error Value: White=0.52/Black=0.14 (very precise)} 0-1

[Event "12th WLC Weekend 2022"]
[Site "Eindhoven"]
[Date "2022.05.14"]
[Round "4.15"]
[White "Winkels, Marcel"]
[Black "Hubers, Daan"]
[Result "0-1"]
[ECO "C00"]
[WhiteElo "1965"]
[BlackElo "1818"]
[Annotator "TA"]
[PlyCount "62"]
[EventDate "2022.05.13"]
[EventType "swiss"]
[EventCountry "NED"]
[SourceTitle "playchess.com"]
[Source "ChessBase"]
[SourceQuality "1"]
[TimeControl "5400+30"]

{[%evp 13,62,3,12,9,3,0,34,26,40,31,68,39,34,46,45,17,19,15,43,25,70,53,68,28,43,-18,13,-200,-185,-359,-355,-360,-356,-337,-328,-452,-468,-372,-283,-272,-95,-388,-400,-332,1718,-20,46,16,22,-872,890]} 1. e4 {[%emt 0:00:01] ChessBase II} e6 {[%emt 0:00:30]} 2. d3 {[%emt 0:00:05]} d5 {[%emt 0:00:29]} 3. Nd2 {[%emt 0:00:03]} Nf6 {[%emt 0:01:04]} 4. Ngf3 {[%emt 0:00:08]} b6 {[%emt 0:01:51]} 5. g3 {[%emt 0:01:51]} Bb7 {[%emt 0:01:24]} 6. Qe2 {[%emt 0:00:17]} dxe4 {[%emt 0:03:19]} 7. dxe4 {[%emt 0:00:55]} Nbd7 {[%emt 0:01:05]} 8. Bg2 {[%emt 0:00:23] C00: French: Unusual White 2nd moves.} e5 {[%emt 0:03:55]} 9. O-O {[%emt 0:00:39]} Bd6 {[%emt 0:01:05]} 10. Nc4 {[%emt 0:04:39] [#] White is slightly better.} Qe7 $146 {[%emt 0:02:42]} ({Predecessor:} 10... O-O 11. Nfd2 Nc5 12. Rd1 Qe7 13. Nxd6 cxd6 14. c4 Rac8 15. b3 Rfd8 16. Bb2 Ba6 17. Rac1 d5 18. exd5 Nxd5 19. Ne4 Nb4 20. Nxc5 Qxc5 21. a3 {1-0 (21) Lebreton,F (2023)-Eugene,F (1704) Sautron 2012 EXT 2014 [ChessBase II]}) 11. Nxd6+ {[%emt 0:01:09]} cxd6 {[%emt 0:01:14]} 12. Nd2 {[%emt 0:01:44]} (12. Nh4 $5 {[%cal Rh4f5]}) 12... O-O {[%emt 0:00:56]} 13. c4 {[%emt 0:08:14]} Nc5 {[%emt 0:05:38]} 14. b4 {[%emt 0:01:34]} Ne6 {[%emt 0:00:33]} 15. Bb2 {[%emt 0:01:04]} Rac8 {[%emt 0:06:54]} 16. Rac1 {[%emt 0:02:23]} Nd7 {[%emt 0:03:10]} 17. Rfe1 {[%emt 0:01:28]} Nb8 {[%emt 0:01:55]} 18. Nb3 {[%emt 0:02:19]} f5 {[%emt 0:06:46]} 19. Red1 {[%emt 0:04:58]} (19. f4 $14) 19... fxe4 {[%emt 0:10:15]} 20. Bxe4 $2 {[%emt 0:07:26]} (20. c5 $11 {and White is okay.}) 20... Ng5 $1 $19 {[%emt 0:03:26][%cal Be6g5,Bg5h3,Bh3f2][%mdl 32]} 21. Bd5+ {[%emt 0:02:12]} (21. Bg2 {was called for.}) 21... Bxd5 {[%emt 0:01:31]} 22. Rxd5 {[%emt 0:03:33][%cal Of2f4]} Nh3+ {[%emt 0:06:22]} 23. Kh1 {[%emt 0:04:07]} Nxf2+ {[%emt 0:04:07] Pair of Knights!} 24. Kg1 {[%emt 0:02:00]} Nh3+ {[%emt 0:01:10]} 25. Kh1 {[%emt 0:00:14]} Qe6 {[%emt 0:09:22] Hoping for ...Rf2.} 26. Bd4 {[%emt 0:03:58] Prevents Rf2.} Qf5 $2 {[%emt 0:04:51]} (26... Na6 $19 {is more deadly.} 27. Bg1 Nxb4) 27. Be3 $2 {[%emt 0:01:40][%mdl 8192]} (27. Nd2 $17) 27... Qe4+ {[%emt 0:01:19]} 28. Qg2 {[%emt 0:00:14]} Rc6 $4 {[%emt 0:05:28][%mdl 8192]} 29. Re1 $2 {[%emt 0:02:23] [#]} (29. Qxe4 $18 Nf2+ 30. Bxf2) 29... Rxc4 {[%emt 0:04:10]} (29... Ng5 $1 $11) 30. Rxd6 {[%emt 0:01:31] Threatens to win with Nd2.} Qg4 {[%emt 0:02:13]} (30... Rxb4 $2 31. Nd2 Qxg2+ 32. Kxg2 $18) 31. Rd4 {[%emt 0:05:36][%mdl 8192] Prevents Re4.} e4 $4 {[%emt 0:00:55][%mdl 40960] What a bad dream for Black.  Weighted Error Value: White=1.14/Black=0.23 (precise) . Loss on time!?} 0-1

[Event "12th WLC Weekend 2022"]
[Site "Eindhoven"]
[Date "2022.05.14"]
[Round "4.16"]
[White "Van de Put, Jeroen"]
[Black "Lind, Jacco"]
[Result "1/2-1/2"]
[ECO "C45"]
[WhiteElo "1987"]
[BlackElo "1801"]
[Annotator "TA"]
[PlyCount "74"]
[EventDate "2022.05.13"]
[EventType "swiss"]
[EventCountry "NED"]
[SourceTitle "playchess.com"]
[Source "ChessBase"]
[SourceQuality "1"]
[TimeControl "5400+30"]

{[%evp 18,74,0,0,7,14,13,14,13,15,38,0,0,-8,-9,-10,-1,-8,16,10,81,71,65,46,97,59,66,12,8,0,0,0,94,91,86,84,79,26,17,14,37,59,81,11,11,15,41,37,40,-42,-63,-52,-15,-16,-17,-14,-16,-45,-44]} 1. e4 {[%emt 0:00:03]} e5 {[%emt 0:00:06]} 2. Nf3 {[%emt 0:00:04]} Nc6 {[%emt 0:00:05]} 3. d4 {[%emt 0:00:04]} exd4 {[%emt 0:00:06]} 4. Nxd4 {[%emt 0:00:03]} Nf6 {[%emt 0:00:08]} 5. Nxc6 {[%emt 0:00:18]} bxc6 {[%emt 0:00:06]} 6. e5 {[%emt 0:00:05]} Qe7 {[%emt 0:00:06]} 7. Qe2 {[%emt 0:00:06]} Nd5 {[%emt 0:00:06]} 8. c4 {[%emt 0:00:12]} Nb6 {[%emt 0:00:08]} 9. Nc3 {[%emt 0:00:50]} Qe6 {[%emt 0:00:08]} 10. Qe4 {[%emt 0:04:27]} d5 {[%emt 0:00:36] C45: Scotch Game.} 11. exd6 {[%emt 0:03:45]} Qxe4+ {[%emt 0:00:11]} 12. Nxe4 {[%emt 0:00:06][%cal Bc3e4,Be4g3,Bg3e2,Be2f4][%mdl 32]} cxd6 {[%emt 0:00:05] The position is equal.} 13. b3 {[%emt 0:05:26]} Be7 {[%emt 0:05:09]} 14. Bb2 {[%emt 0:00:14]} O-O {[%emt 0:00:19]} 15. O-O-O {[%emt 0:07:08]} d5 {[%emt 0:12:07]} 16. cxd5 {[%emt 0:00:23]} cxd5 {[%emt 0:00:06]} 17. Ng3 {[%emt 0:01:03] [#]} Bc5 $146 {[%emt 0:10:42]} ({Predecessor:} 17... a5 18. Bd3 a4 19. Nf5 Bxf5 20. Bxf5 axb3 21. axb3 g6 22. Bg4 Rfd8 23. Rhe1 Ba3 {½-½ (35) Siklosi,Z (2280)-Steiner,B (2280) Kecskemet 1992}) 18. f3 {[%emt 0:02:46]} f5 {[%emt 0:03:57]} (18... a5 $11 {keeps the balance.}) 19. Bd3 $16 {[%emt 0:04:40]} a5 {[%emt 0:06:14][%cal Ba7a5,Ba5a4][%mdl 32]} 20. Kb1 {[%emt 0:04:39]} g6 {[%emt 0:04:32]} (20... f4 $14) 21. Ne2 {[%emt 0:05:57] White is more active.} a4 {[%emt 0:02:39]} 22. Bc2 {[%emt 0:06:24]} ({White should try} 22. h4 $14) 22... Be6 $11 {[%emt 0:01:36]} 23. Nf4 {[%emt 0:09:03]} Bf7 {[%emt 0:00:19]} 24. Rhe1 {[%emt 0:01:21]} Rfe8 {[%emt 0:02:56] Against Ne6} (24... Bb4 $11) 25. Rxe8+ $16 {[%emt 0:01:17]} Rxe8 {[%emt 0:00:10]} 26. bxa4 {[%emt 0:01:12]} Be3 {[%emt 0:01:58]} 27. Nd3 {[%emt 0:07:53]} (27. Bc1 $16) 27... Nc4 $11 {[%emt 0:02:15]} 28. Bb3 {[%emt 0:02:53]} Nd2+ {[%emt 0:14:29]} 29. Ka1 {[%emt 0:00:21]} Rc8 {[%emt 0:02:59]} 30. Ne5 {[%emt 0:10:12]} (30. Nc1 $16) 30... Be6 $1 {[%emt 0:02:06]} 31. Re1 {[%emt 0:00:35]} Nxb3+ {[%emt 0:00:20]} 32. axb3 {[%emt 0:00:08]} d4 {[%emt 0:00:28]} 33. b4 {[%emt 0:05:10]} ({White should play} 33. Ka2 $1 $14) 33... Bb3 $15 {[%emt 0:04:10]} 34. a5 {[%emt 0:02:52]} Bd2 {[%emt 0:01:01][%csl LRb4,LRe1] This bishop pair is nice.} (34... f4 $5 {[%cal Rc8d8]}) 35. Re2 {[%emt 0:00:18]} ({Much weaker is} 35. Rb1 Bc2 36. a6 Bxb1 $15) 35... Bxb4 {[%emt 0:00:32] And now ...Rd8 would win.} 36. Bxd4 {[%emt 0:01:24] [#] Strongly threatening a6.} Bxa5 {[%emt 0:00:16]} 37. Kb2 {[%emt 0:02:00]} Ba4 {[%emt 0:03:00] Weighted Error Value: White=0.22 (precise) /Black=0.19 (very precise)} 1/2-1/2

[Event "12th WLC Weekend 2022"]
[Site "Eindhoven"]
[Date "2022.05.14"]
[Round "4.17"]
[White "Bakija, Alan"]
[Black "Plasmans, Bart"]
[Result "1-0"]
[ECO "A81"]
[WhiteElo "1868"]
[BlackElo "1775"]
[Annotator "NA RC COMBH"]
[PlyCount "60"]
[EventDate "2022.05.13"]
[EventType "swiss"]
[EventCountry "NED"]
[SourceTitle "playchess.com"]
[Source "ChessBase"]
[SourceQuality "1"]
[TimeControl "5400+30"]

1. Nf3 {[%emt 0:00:03]} e6 {[%emt 0:00:20]} 2. g3 {[%emt 0:00:19]} f5 {[%emt 0:00:13]} 3. c4 {[%emt 0:00:05]} Nf6 {[%emt 0:00:05]} 4. Bg2 {[%emt 0:00:04]} c5 {[%emt 0:00:20]} 5. O-O {[%emt 0:00:26]} Nc6 {[%emt 0:00:06]} 6. d4 {[%emt 0:01:22]} cxd4 {[%emt 0:00:20]} 7. Nxd4 {[%emt 0:00:09]} Be7 {[%emt 0:02:07]} 8. b3 {[%emt 0:01:49]} O-O {[%emt 0:00:45]} 9. Bb2 {[%emt 0:00:25]} a6 {[%emt 0:10:36]} 10. Nd2 {[%emt 0:01:05]} Qe8 {[%emt 0:01:31]} 11. e4 {[%emt 0:11:15]} Qg6 {[%emt 0:10:40]} 12. exf5 {[%emt 0:02:17]} exf5 {[%emt 0:00:14]} 13. Ne2 {[%emt 0:22:03]} Nh5 {[%emt 0:14:48]} 14. Bf3 {[%emt 0:02:05]} Bf6 {[%emt 0:01:57]} 15. Bxh5 {[%emt 0:07:38]} Qxh5 {[%emt 0:00:09]} 16. Bxf6 {[%emt 0:00:07]} Rxf6 {[%emt 0:01:01]} 17. Nf4 {[%emt 0:00:10]} Qxd1 {[%emt 0:00:42]} 18. Rb1 {[%emt 0:00:20]} Qc1 19. Rbxc1 {[%emt 0:00:30]} Ne7 {[%emt 0:06:04]} 20. Rcd1 {[%emt 0:04:36]} (20. Rfe1 $18 Kf8 21. Nf3) 20... g5 {[%emt 0:04:44]} 21. c5 $2 {[%emt 0:01:01]} d6 {[%emt 0:01:46]} 22. Nd3 d5 {[%emt 0:00:07]} (22... dxc5 $14 23. f4 (23. Nxc5 b6 $14) 23... gxf4) 23. Nc4 $2 {[%emt 0:13:02]} b5 {[%emt 0:08:15]} 24. Nb6 {[%emt 0:02:31]} Ra7 {[%emt 0:01:52]} 25. Nxc8 {[%emt 0:01:42]} Nxc8 {[%emt 0:00:00]} 26. Rc1 {[%emt 0:00:04]} a5 {[%emt 0:03:28]} 27. Kg2 {[%emt 0:00:00]} g4 {[%emt 0:02:40]} 28. b4 {[%emt 0:00:50]} Rb6 $2 {[%emt 0:06:11]} (28... axb4 $16 29. Nxb4 f4 30. gxf4 (30. Nxd5 f3+ 31. Kg1 Re6 $16) 30... Rxf4 31. Nxd5 Rd4) 29. h3 $2 {[%emt 0:12:04]} (29. cxb6 Nxb6 30. Rc5) 29... Rf6 $18 {[%emt 0:08:47]} (29... gxh3+ $16 30. Kh2 (30. Kxh3 Re6 $16) 30... Re6) 30. Nf4 {[%emt 0:04:09]} (30. hxg4 $18 fxg4 31. Rfe1) 30... a4 $2 {[%emt 0:05:57]} (30... gxh3+ $16 31. Kh2 (31. Kxh3 Rh6+ 32. Kg2 axb4 $16) 31... axb4) 1-0